[Event "Early-Titled-Tuesday-Blitz-October-17-2023"]
[Site "Chess.com"]
[Date "2023.10.17"]
[Round "2"]
[White "Jospem"]
[Black "wqws"]
[Result "1-0"]
[WhiteElo "3104"]
[BlackElo "2630"]
[TimeControl "180+1"]
[EndTime "8:20:25 PDT"]
[Termination "Jospem won by resignation"]

1. e4 {[%clk 0:03:00.9]} 1... c5 {[%clk 0:02:59.1]} 2. Nf3 {[%clk 0:03:00.4]}
2... d6 {[%clk 0:02:59.7]} 3. c3 {[%clk 0:03:00.3]} 3... Nf6 {[%clk 0:02:57.4]}
4. h3 {[%clk 0:03:00.9]} 4... g6 {[%clk 0:02:55.9]} 5. Bd3 {[%clk 0:03:01.2]}
5... Bg7 {[%clk 0:02:56.2]} 6. Bc2 {[%clk 0:03:01.3]} 6... O-O {[%clk
0:02:56.8]} 7. O-O {[%clk 0:03:00.8]} 7... b6 {[%clk 0:02:56.5]} 8. d4 {[%clk
0:03:01.1]} 8... Bb7 {[%clk 0:02:56.7]} 9. Re1 {[%clk 0:03:00.9]} 9... Nbd7
{[%clk 0:02:56.8]} 10. e5 {[%clk 0:02:53.7]} 10... Nd5 {[%clk 0:02:53.1]} 11.
exd6 {[%clk 0:02:45.1]} 11... exd6 {[%clk 0:02:52.8]} 12. Na3 {[%clk 0:02:45.8]}
12... N7f6 {[%clk 0:02:45]} 13. Bg5 {[%clk 0:02:43.4]} 13... h6 {[%clk
0:02:44.9]} 14. Bh4 {[%clk 0:02:40.7]} 14... Nf4 {[%clk 0:02:20]} 15. Nc4 {[%clk
0:02:15.6]} 15... b5 {[%clk 0:02:05.5]} 16. Ne3 {[%clk 0:02:13]} 16... Qc8
{[%clk 0:02:04.7]} 17. Bxf6 {[%clk 0:02:01.9]} 17... Bxf6 {[%clk 0:02:02.7]} 18.
Ng4 {[%clk 0:02:02.6]} 18... Bg7 {[%clk 0:01:59.2]} 19. Be4 {[%clk 0:02:03.3]}
19... h5 {[%clk 0:01:10.6]} 20. Bxb7 {[%clk 0:01:59.7]} 20... Qxb7 {[%clk
0:01:11.1]} 21. Ne3 {[%clk 0:01:58.9]} 21... c4 {[%clk 0:01:09.4]} 22. b3 {[%clk
0:01:50.1]} 22... d5 {[%clk 0:01:08.4]} 23. Qd2 {[%clk 0:01:43.1]} 23... Nd3
{[%clk 0:01:08.2]} 24. Reb1 {[%clk 0:01:39.1]} 24... Qc6 {[%clk 0:01:08.4]} 25.
bxc4 {[%clk 0:01:37]} 25... bxc4 {[%clk 0:01:09.1]} 26. Ne1 {[%clk 0:01:36.2]}
26... Nxe1 {[%clk 0:01:06.4]} 27. Rxe1 {[%clk 0:01:37.1]} 27... Rfe8 {[%clk
0:01:04.5]} 28. Nc2 {[%clk 0:01:31.4]} 28... Qd6 {[%clk 0:00:59.5]} 29. Rab1
{[%clk 0:01:30.8]} 29... Reb8 {[%clk 0:00:53.3]} 30. Qe3 {[%clk 0:01:27]} 30...
Rxb1 {[%clk 0:00:52.2]} 31. Rxb1 {[%clk 0:01:27.9]} 31... Rb8 {[%clk 0:00:52.3]}
32. Rxb8+ {[%clk 0:01:06.4]} 32... Qxb8 {[%clk 0:00:51.9]} 33. Nb4 {[%clk
0:01:07.3]} 33... Qb5 {[%clk 0:00:40.8]} 34. Qe7 {[%clk 0:00:42.9]} 34... a5
{[%clk 0:00:22.9]} 35. Qd8+ {[%clk 0:00:42.9]} 35... Kh7 {[%clk 0:00:22.6]} 36.
Qxd5 {[%clk 0:00:43.5]} 36... Qa4 {[%clk 0:00:20.8]} 37. Nc6 {[%clk 0:00:40.5]}
37... Qxa2 {[%clk 0:00:21]} 38. Qxa5 {[%clk 0:00:32.8]} 38... Qb1+ {[%clk
0:00:18.9]} 39. Kh2 {[%clk 0:00:33.2]} 39... Qe4 {[%clk 0:00:18.5]} 40. Qc7
{[%clk 0:00:32]} 40... Bh6 {[%clk 0:00:14.7]} 41. Qxf7+ {[%clk 0:00:30.1]} 41...
Kh8 {[%clk 0:00:14.4]} 42. Ne7 {[%clk 0:00:19.8]} 42... Qf4+ {[%clk 0:00:11.8]}
43. Qxf4 {[%clk 0:00:18.8]} 43... Bxf4+ {[%clk 0:00:12.7]} 44. g3 {[%clk
0:00:19.7]} 44... Bd2 {[%clk 0:00:13.4]} 45. Nd5 {[%clk 0:00:20.4]} 45... Kg7
{[%clk 0:00:12.6]} 46. Kg2 {[%clk 0:00:20.7]} 46... Kf7 {[%clk 0:00:13.1]} 47.
Kf3 {[%clk 0:00:21.4]} 47... Ke6 {[%clk 0:00:13.6]} 48. Ke4 {[%clk 0:00:22.1]}
48... g5 {[%clk 0:00:14]} 49. g4 {[%clk 0:00:21.6]} 49... h4 {[%clk 0:00:12.5]}
50. Ne3 {[%clk 0:00:20.4]} 50... Bxc3 {[%clk 0:00:11.1]} 51. Nxc4 {[%clk
0:00:20.8]} 51... Be1 {[%clk 0:00:11.4]} 52. f3 {[%clk 0:00:19.8]} 52... Bg3
{[%clk 0:00:11.1]} 53. d5+ {[%clk 0:00:19.5]} 53... Kf6 {[%clk 0:00:11.6]} 54.
Ne3 {[%clk 0:00:19.4]} 54... Bf4 {[%clk 0:00:11.3]} 55. Ng2 {[%clk 0:00:20.3]}
55... Bg3 {[%clk 0:00:11.1]} 56. f4 {[%clk 0:00:21.2]} 56... gxf4 {[%clk
0:00:11]} 57. Nxf4 {[%clk 0:00:22.1]} 57... Ke7 {[%clk 0:00:10.8]} 58. Ne2
{[%clk 0:00:20.5]} 58... Bc7 {[%clk 0:00:09.7]} 59. Nd4 {[%clk 0:00:21]} 59...
Ke8 {[%clk 0:00:09.2]} 60. Kf5 {[%clk 0:00:20]} 60... Ke7 {[%clk 0:00:09.2]} 61.
g5 {[%clk 0:00:19.2]} 61... Bb6 {[%clk 0:00:07]} 62. Ne6 {[%clk 0:00:19]} 62...
Ba5 {[%clk 0:00:05.4]} 63. g6 {[%clk 0:00:19.7]} 63... Bc3 {[%clk 0:00:05.7]}
64. g7 {[%clk 0:00:17.2]} 64... Kf7 {[%clk 0:00:06.2]} 65. d6 {[%clk 0:00:17.7]}
65... Bxg7 {[%clk 0:00:06.1]} 66. Nxg7 {[%clk 0:00:17.2]} 66... Kxg7 {[%clk
0:00:06.4]} 67. d7 {[%clk 0:00:17.8]} 1-0

[Event "Early-Titled-Tuesday-Blitz-October-17-2023"]
[Site "Chess.com"]
[Date "2023.10.17"]
[Round "2"]
[White "giomar27"]
[Black "FunnyDuck66"]
[Result "1-0"]
[WhiteElo "2315"]
[BlackElo "2494"]
[TimeControl "180+1"]
[EndTime "8:20:29 PDT"]
[Termination "giomar27 won by checkmate"]

1. b3 {[%clk 0:03:00.9]} 1... Nf6 {[%clk 0:02:58.4]} 2. Bb2 {[%clk 0:02:59.5]}
2... d5 {[%clk 0:02:58.3]} 3. Nf3 {[%clk 0:02:57.8]} 3... Bg4 {[%clk 0:02:55.7]}
4. e3 {[%clk 0:02:40.6]} 4... Nbd7 {[%clk 0:02:54.4]} 5. c4 {[%clk 0:02:39.4]}
5... e6 {[%clk 0:02:49.8]} 6. h3 {[%clk 0:02:38.7]} 6... Bh5 {[%clk 0:02:48.7]}
7. Nc3 {[%clk 0:02:35.1]} 7... c6 {[%clk 0:02:44.8]} 8. Be2 {[%clk 0:02:33.6]}
8... Bd6 {[%clk 0:02:38.9]} 9. d4 {[%clk 0:02:30.9]} 9... O-O {[%clk 0:02:35.9]}
10. O-O {[%clk 0:02:31]} 10... Ne4 {[%clk 0:02:34.8]} 11. Nxe4 {[%clk
0:02:11.3]} 11... dxe4 {[%clk 0:02:35.7]} 12. Nd2 {[%clk 0:02:11.9]} 12... Bxe2
{[%clk 0:02:34.4]} 13. Qxe2 {[%clk 0:02:12.8]} 13... f5 {[%clk 0:02:34.4]} 14.
f3 {[%clk 0:01:55.3]} 14... exf3 {[%clk 0:02:30.6]} 15. gxf3 {[%clk 0:01:55.6]}
15... Rf6 {[%clk 0:02:16.9]} 16. f4 {[%clk 0:01:49.9]} 16... Rg6+ {[%clk
0:02:13.1]} 17. Kh2 {[%clk 0:01:48.9]} 17... Qh4 {[%clk 0:02:13]} 18. Rg1 {[%clk
0:01:48.1]} 18... Rh6 {[%clk 0:02:10.5]} 19. Qg2 {[%clk 0:01:36.6]} 19... Rg6
{[%clk 0:01:43.9]} 20. Qf1 {[%clk 0:01:21.3]} 20... Nf6 {[%clk 0:01:29.7]} 21.
Rxg6 {[%clk 0:01:16.3]} 21... hxg6 {[%clk 0:01:30.6]} 22. Kg2 {[%clk 0:01:07.4]}
22... Kf7 {[%clk 0:01:27.2]} 23. Nf3 {[%clk 0:01:07.4]} 23... Qh5 {[%clk
0:01:23.3]} 24. Ng5+ {[%clk 0:01:06.5]} 24... Ke7 {[%clk 0:01:22.8]} 25. Qf3
{[%clk 0:01:05]} 25... Qh4 {[%clk 0:01:16.8]} 26. Qg3 {[%clk 0:00:41.1]} 26...
Qh5 {[%clk 0:00:56.1]} 27. Qf3 {[%clk 0:00:34.3]} 27... Qxf3+ {[%clk 0:00:23.9]}
28. Kxf3 {[%clk 0:00:32.3]} 28... Rh8 {[%clk 0:00:23.9]} 29. Rg1 {[%clk
0:00:23.3]} 29... b5 {[%clk 0:00:17.3]} 30. Rc1 {[%clk 0:00:17.1]} 30... bxc4
{[%clk 0:00:11.9]} 31. Rxc4 {[%clk 0:00:17]} 31... Kd7 {[%clk 0:00:12.4]} 32.
Ra4 {[%clk 0:00:16.1]} 32... Bb8 {[%clk 0:00:12.1]} 33. Ba3 {[%clk 0:00:12]}
33... Nd5 {[%clk 0:00:09.2]} 34. Bc5 {[%clk 0:00:06]} 34... Bc7 {[%clk
0:00:03.3]} 35. Rxa7 {[%clk 0:00:05.6]} 35... Rc8 {[%clk 0:00:02.7]} 36. Nf7
{[%clk 0:00:05.1]} 36... Rb8 {[%clk 0:00:03]} 37. Ne5+ {[%clk 0:00:05.5]} 37...
Kd8 {[%clk 0:00:03.7]} 38. Nxc6+ {[%clk 0:00:05.5]} 38... Kc8 {[%clk 0:00:04]}
39. Nxb8 {[%clk 0:00:06.4]} 39... Kxb8 {[%clk 0:00:04.8]} 40. Ra4 {[%clk
0:00:04.7]} 40... Kb7 {[%clk 0:00:05.3]} 41. Rc4 {[%clk 0:00:05]} 41... Kc6
{[%clk 0:00:05.9]} 42. Rc1 {[%clk 0:00:05.6]} 42... Kd7 {[%clk 0:00:05.5]} 43.
Rg1 {[%clk 0:00:06.2]} 43... Bd8 {[%clk 0:00:05.2]} 44. Rxg6 {[%clk 0:00:06.1]}
44... Bf6 {[%clk 0:00:06.1]} 45. Rg1 {[%clk 0:00:03.8]} 45... Nc3 {[%clk
0:00:06.7]} 46. a4 {[%clk 0:00:03.3]} 46... Ne4 {[%clk 0:00:07]} 47. a5 {[%clk
0:00:03.3]} 47... Nd2+ {[%clk 0:00:07.6]} 48. Ke2 {[%clk 0:00:03.6]} 48... Nxb3
{[%clk 0:00:08.3]} 49. Rb1 {[%clk 0:00:03.1]} 49... Nxa5 {[%clk 0:00:08.6]} 50.
Ra1 {[%clk 0:00:02.7]} 50... Nc6 {[%clk 0:00:09.1]} 51. Rc1 {[%clk 0:00:02.4]}
51... Kc7 {[%clk 0:00:09.8]} 52. Kd3 {[%clk 0:00:02.9]} 52... Kd7 {[%clk
0:00:10.7]} 53. Kc4 {[%clk 0:00:03.5]} 53... Ne7 {[%clk 0:00:11.5]} 54. Kb5
{[%clk 0:00:03.9]} 54... Nd5 {[%clk 0:00:12.4]} 55. Re1 {[%clk 0:00:03.8]} 55...
Nc3+ {[%clk 0:00:13]} 56. Kb6 {[%clk 0:00:02.9]} 56... Ne4 {[%clk 0:00:13.9]}
57. Ra1 {[%clk 0:00:02.6]} 57... Ke8 {[%clk 0:00:14.2]} 58. Ra7 {[%clk
0:00:03.5]} 58... Be7 {[%clk 0:00:13.8]} 59. Rxe7+ {[%clk 0:00:03.4]} 59... Kf8
{[%clk 0:00:14.7]} 60. Ra7+ {[%clk 0:00:03.8]} 60... Kg8 {[%clk 0:00:15.4]} 61.
Ra8+ {[%clk 0:00:04.3]} 61... Kh7 {[%clk 0:00:16.3]} 62. Kc6 {[%clk 0:00:04.8]}
62... Kh6 {[%clk 0:00:17.2]} 63. Kd7 {[%clk 0:00:05.3]} 63... g5 {[%clk
0:00:18.1]} 64. fxg5+ {[%clk 0:00:05.3]} 64... Kxg5 {[%clk 0:00:18.5]} 65. Kxe6
{[%clk 0:00:05.7]} 65... Kh4 {[%clk 0:00:19.2]} 66. Rh8+ {[%clk 0:00:05.6]}
66... Kg3 {[%clk 0:00:19.3]} 67. Kxf5 {[%clk 0:00:06.2]} 67... Nc3 {[%clk
0:00:18.2]} 68. Rg8+ {[%clk 0:00:06.7]} 68... Kf3 {[%clk 0:00:19.1]} 69. h4
{[%clk 0:00:07.1]} 69... Kxe3 {[%clk 0:00:19.1]} 70. h5 {[%clk 0:00:07.8]} 70...
Nd5 {[%clk 0:00:19.8]} 71. h6 {[%clk 0:00:08.3]} 71... Kd3 {[%clk 0:00:19.4]}
72. h7 {[%clk 0:00:08.8]} 72... Kc4 {[%clk 0:00:20.3]} 73. h8=Q {[%clk
0:00:09.4]} 73... Nc3 {[%clk 0:00:20]} 74. Rd8 {[%clk 0:00:09.6]} 74... Nb5
{[%clk 0:00:19.9]} 75. Qg8+ {[%clk 0:00:10.5]} 75... Kc3 {[%clk 0:00:19.8]} 76.
Rb8 {[%clk 0:00:11]} 76... Na3 {[%clk 0:00:20.7]} 77. Qb3+ {[%clk 0:00:10.9]}
77... Kd2 {[%clk 0:00:21.5]} 78. Qxa3 {[%clk 0:00:11.3]} 78... Kd1 {[%clk
0:00:21.8]} 79. Rb1+ {[%clk 0:00:11.1]} 79... Ke2 {[%clk 0:00:21.7]} 80. Rb2+
{[%clk 0:00:11.5]} 80... Ke1 {[%clk 0:00:21.6]} 81. Qa1# {[%clk 0:00:12.4]} 1-0

[Event "Early-Titled-Tuesday-Blitz-October-17-2023"]
[Site "Chess.com"]
[Date "2023.10.17"]
[Round "2"]
[White "DreamsAreFake"]
[Black "AyMitecK"]
[Result "1-0"]
[WhiteElo "2742"]
[BlackElo "2544"]
[TimeControl "180+1"]
[EndTime "8:20:36 PDT"]
[Termination "DreamsAreFake won by checkmate"]

1. Nf3 {[%clk 0:02:55.7]} 1... Nf6 {[%clk 0:02:55.6]} 2. g3 {[%clk 0:02:55.7]}
2... e6 {[%clk 0:02:54]} 3. Bg2 {[%clk 0:02:55.7]} 3... d5 {[%clk 0:02:54.9]} 4.
O-O {[%clk 0:02:56]} 4... Bd6 {[%clk 0:02:55.4]} 5. b3 {[%clk 0:02:56.7]} 5...
O-O {[%clk 0:02:55.3]} 6. Bb2 {[%clk 0:02:57.5]} 6... c5 {[%clk 0:02:56.2]} 7.
e3 {[%clk 0:02:54.3]} 7... Nc6 {[%clk 0:02:57.1]} 8. c4 {[%clk 0:02:52.5]} 8...
Re8 {[%clk 0:02:52.7]} 9. Nc3 {[%clk 0:02:51.2]} 9... b6 {[%clk 0:02:48.3]} 10.
Rc1 {[%clk 0:02:48.4]} 10... Bb7 {[%clk 0:02:47.9]} 11. cxd5 {[%clk 0:02:48.8]}
11... exd5 {[%clk 0:02:43.1]} 12. d4 {[%clk 0:02:49.2]} 12... c4 {[%clk
0:02:32.5]} 13. bxc4 {[%clk 0:02:32]} 13... dxc4 {[%clk 0:02:33.4]} 14. Nb5
{[%clk 0:02:22.4]} 14... Na5 {[%clk 0:02:28.8]} 15. Bc3 {[%clk 0:02:18.1]} 15...
Bd5 {[%clk 0:02:03.5]} 16. Bxa5 {[%clk 0:02:14.7]} 16... bxa5 {[%clk 0:01:59.6]}
17. Nd2 {[%clk 0:02:11.7]} 17... Bxg2 {[%clk 0:01:49.4]} 18. Kxg2 {[%clk
0:02:12.6]} 18... Bb4 {[%clk 0:01:47.2]} 19. Nf3 {[%clk 0:01:51.7]} 19... Nd5
{[%clk 0:01:31.6]} 20. Ne5 {[%clk 0:01:39.3]} 20... a6 {[%clk 0:01:22.3]} 21.
Qf3 {[%clk 0:01:18.2]} 21... f6 {[%clk 0:01:12.2]} 22. Nc6 {[%clk 0:01:12.8]}
22... Qd7 {[%clk 0:01:11.2]} 23. Nba7 {[%clk 0:01:07.7]} 23... c3 {[%clk
0:00:59.3]} 24. e4 {[%clk 0:01:06.2]} 24... Nb6 {[%clk 0:00:57.8]} 25. a3 {[%clk
0:01:04.9]} 25... Bxa3 {[%clk 0:00:56.1]} 26. Rxc3 {[%clk 0:01:05.1]} 26... Bb4
{[%clk 0:00:55.5]} 27. Rc2 {[%clk 0:01:04.6]} 27... Rxa7 {[%clk 0:00:53.7]} 28.
Nxa7 {[%clk 0:01:04.4]} 28... Qxa7 {[%clk 0:00:54.6]} 29. Rc6 {[%clk 0:00:51]}
29... Nd7 {[%clk 0:00:51]} 30. Qd3 {[%clk 0:00:46.1]} 30... Qb7 {[%clk
0:00:46.6]} 31. Qc4+ {[%clk 0:00:21.7]} 31... Kh8 {[%clk 0:00:45.2]} 32. f3
{[%clk 0:00:22.4]} 32... Qb5 {[%clk 0:00:44.1]} 33. Rc1 {[%clk 0:00:21.2]} 33...
Qxc4 {[%clk 0:00:38.4]} 34. R1xc4 {[%clk 0:00:22.1]} 34... h5 {[%clk 0:00:37.3]}
35. Rxa6 {[%clk 0:00:22.1]} 35... Rb8 {[%clk 0:00:34.1]} 36. Rc7 {[%clk
0:00:21.5]} 36... Nf8 {[%clk 0:00:30.4]} 37. d5 {[%clk 0:00:20.7]} 37... Ng6
{[%clk 0:00:24.9]} 38. f4 {[%clk 0:00:17.2]} 38... Re8 {[%clk 0:00:20]} 39. Kf3
{[%clk 0:00:14.2]} 39... h4 {[%clk 0:00:12.5]} 40. Raa7 {[%clk 0:00:11.8]} 40...
hxg3 {[%clk 0:00:11]} 41. hxg3 {[%clk 0:00:12.5]} 41... Bf8 {[%clk 0:00:08]} 42.
Rxa5 {[%clk 0:00:12.2]} 42... Rb8 {[%clk 0:00:08.7]} 43. Rca7 {[%clk 0:00:09.7]}
43... Rb3+ {[%clk 0:00:08.7]} 44. Kg4 {[%clk 0:00:10.5]} 44... Kh7 {[%clk
0:00:09.6]} 45. Ra1 {[%clk 0:00:10.3]} 45... Bc5 {[%clk 0:00:10.2]} 46. Ra8
{[%clk 0:00:09.9]} 46... Bf2 {[%clk 0:00:10.5]} 47. Rh1+ {[%clk 0:00:10.3]}
47... Nh4 {[%clk 0:00:09.2]} 48. Rxh4+ {[%clk 0:00:11]} 48... Kg6 {[%clk
0:00:10]} 49. Rh3 {[%clk 0:00:11.6]} 49... f5+ {[%clk 0:00:09.3]} 50. exf5+
{[%clk 0:00:11.3]} 50... Kf6 {[%clk 0:00:10.2]} 51. Ra6+ {[%clk 0:00:11.6]}
51... Kf7 {[%clk 0:00:10.4]} 52. Re6 {[%clk 0:00:12.1]} 52... Rc3 {[%clk
0:00:07.8]} 53. d6 {[%clk 0:00:12.7]} 53... Rd3 {[%clk 0:00:08.3]} 54. Re7+
{[%clk 0:00:10.7]} 54... Kf6 {[%clk 0:00:08.3]} 55. Re6+ {[%clk 0:00:10.4]}
55... Kf7 {[%clk 0:00:09.2]} 56. Re2 {[%clk 0:00:10.6]} 56... Bc5 {[%clk
0:00:08.2]} 57. Rh1 {[%clk 0:00:10.8]} 57... Bxd6 {[%clk 0:00:07.3]} 58. Rc1
{[%clk 0:00:11.4]} 58... Bb4 {[%clk 0:00:05.6]} 59. Rc7+ {[%clk 0:00:11.7]}
59... Kg8 {[%clk 0:00:04.5]} 60. Rb7 {[%clk 0:00:12]} 60... Bc3 {[%clk
0:00:03.3]} 61. Re8+ {[%clk 0:00:11.1]} 61... Kh7 {[%clk 0:00:03.1]} 62. Rbb8
{[%clk 0:00:11.9]} 62... Kh6 {[%clk 0:00:02.2]} 63. Rh8# {[%clk 0:00:11.8]} 1-0

[Event "Early-Titled-Tuesday-Blitz-October-17-2023"]
[Site "Chess.com"]
[Date "2023.10.17"]
[Round "2"]
[White "GiorgianBarbosa"]
[Black "GaiozNigalidze"]
[Result "0-1"]
[WhiteElo "2374"]
[BlackElo "2708"]
[TimeControl "180+1"]
[EndTime "8:20:45 PDT"]
[Termination "GaiozNigalidze won by checkmate"]

1. d4 {[%clk 0:03:00]} 1... d5 {[%clk 0:02:59.3]} 2. Nf3 {[%clk 0:02:58.6]} 2...
Nf6 {[%clk 0:02:58]} 3. Bf4 {[%clk 0:02:57.6]} 3... e6 {[%clk 0:02:58.5]} 4. e3
{[%clk 0:02:56.1]} 4... Be7 {[%clk 0:02:57.4]} 5. c3 {[%clk 0:02:54.2]} 5... Nh5
{[%clk 0:02:57.6]} 6. Bg3 {[%clk 0:02:48.1]} 6... Nc6 {[%clk 0:02:54.1]} 7. Nbd2
{[%clk 0:02:15.5]} 7... g5 {[%clk 0:02:51]} 8. Ne5 {[%clk 0:02:01.2]} 8... Nxg3
{[%clk 0:02:49.9]} 9. Nxc6 {[%clk 0:01:58.3]} 9... bxc6 {[%clk 0:02:50.8]} 10.
hxg3 {[%clk 0:01:58.5]} 10... Bf6 {[%clk 0:02:24.6]} 11. b4 {[%clk 0:01:49.4]}
11... a5 {[%clk 0:02:22.1]} 12. a3 {[%clk 0:01:47.6]} 12... axb4 {[%clk
0:02:21.6]} 13. axb4 {[%clk 0:01:48.5]} 13... Rxa1 {[%clk 0:02:22]} 14. Qxa1
{[%clk 0:01:49]} 14... Bd7 {[%clk 0:02:22.3]} 15. Nb3 {[%clk 0:01:45]} 15... Kf8
{[%clk 0:02:03.2]} 16. Nc5 {[%clk 0:01:40.2]} 16... Kg7 {[%clk 0:02:03.6]} 17.
Bd3 {[%clk 0:01:31.2]} 17... e5 {[%clk 0:02:03.6]} 18. Qb1 {[%clk 0:01:13.4]}
18... h5 {[%clk 0:01:29.7]} 19. Bf5 {[%clk 0:01:03.5]} 19... Be8 {[%clk
0:01:27.1]} 20. Qd1 {[%clk 0:00:59.6]} 20... Qa8 {[%clk 0:01:24.5]} 21. Rxh5
{[%clk 0:00:27.8]} 21... Rxh5 {[%clk 0:01:16.1]} 22. Qxh5 {[%clk 0:00:28]} 22...
Qa1+ {[%clk 0:01:16.7]} 23. Ke2 {[%clk 0:00:28.4]} 23... Qb2+ {[%clk 0:01:12.3]}
24. Kd1 {[%clk 0:00:20.1]} 24... Qxc3 {[%clk 0:01:09]} 25. Qh7+ {[%clk
0:00:19.6]} 25... Kf8 {[%clk 0:01:09.6]} 26. Qh6+ {[%clk 0:00:19.5]} 26... Bg7
{[%clk 0:01:10]} 27. Qxg5 {[%clk 0:00:19.2]} 27... exd4 {[%clk 0:00:57.4]} 28.
Qd8 {[%clk 0:00:17.9]} 28... Qa1+ {[%clk 0:00:38.1]} 29. Ke2 {[%clk 0:00:17.2]}
29... d3+ {[%clk 0:00:38.7]} 30. Bxd3 {[%clk 0:00:13.1]} 30... Qb2+ {[%clk
0:00:35.8]} 31. Kf3 {[%clk 0:00:11.5]} 31... Qf6+ {[%clk 0:00:33.3]} 32. Qxf6
{[%clk 0:00:11.7]} 32... Bxf6 {[%clk 0:00:34.2]} 33. Na6 {[%clk 0:00:06.7]}
33... Bc3 {[%clk 0:00:32.5]} 34. Ke2 {[%clk 0:00:07.4]} 34... Bd7 {[%clk
0:00:31.3]} 35. b5 {[%clk 0:00:07.2]} 35... Ba5 {[%clk 0:00:20.4]} 36. bxc6
{[%clk 0:00:06.8]} 36... Bxc6 {[%clk 0:00:21.3]} 37. Nc5 {[%clk 0:00:07.4]}
37... Ke7 {[%clk 0:00:21]} 38. Nb3 {[%clk 0:00:07.4]} 38... Bc3 {[%clk
0:00:19.8]} 39. Nd4 {[%clk 0:00:07.7]} 39... Bd7 {[%clk 0:00:20.2]} 40. Bf5
{[%clk 0:00:08.1]} 40... Be8 {[%clk 0:00:19.7]} 41. Bd3 {[%clk 0:00:07.5]} 41...
c5 {[%clk 0:00:19.3]} 42. Nf5+ {[%clk 0:00:08.1]} 42... Kf6 {[%clk 0:00:19]} 43.
g4 {[%clk 0:00:08.7]} 43... Ke5 {[%clk 0:00:18]} 44. f4+ {[%clk 0:00:08.6]}
44... Kf6 {[%clk 0:00:17.6]} 45. g5+ {[%clk 0:00:08.7]} 45... Ke6 {[%clk
0:00:16.6]} 46. Ng7+ {[%clk 0:00:08.1]} 46... Bxg7 {[%clk 0:00:16.3]} 47. g4
{[%clk 0:00:06.2]} 47... Ba4 {[%clk 0:00:16]} 48. f5+ {[%clk 0:00:05.6]} 48...
Ke5 {[%clk 0:00:16.2]} 49. f6 {[%clk 0:00:04.1]} 49... Bf8 {[%clk 0:00:16.5]}
50. Kf3 {[%clk 0:00:03.7]} 50... Bd7 {[%clk 0:00:15.9]} 51. Bh7 {[%clk
0:00:02.5]} 51... c4 {[%clk 0:00:15.2]} 52. Bg8 {[%clk 0:00:02.9]} 52... c3
{[%clk 0:00:13.7]} 53. Bh7 {[%clk 0:00:03.8]} 53... Ba4 {[%clk 0:00:13.2]} 54.
g6 {[%clk 0:00:03]} 54... fxg6 {[%clk 0:00:12.5]} 55. Bxg6 {[%clk 0:00:03.9]}
55... c2 {[%clk 0:00:12.9]} 56. Bxc2 {[%clk 0:00:03.3]} 56... Bxc2 {[%clk
0:00:13.8]} 57. g5 {[%clk 0:00:04]} 57... Kf5 {[%clk 0:00:14.1]} 58. f7 {[%clk
0:00:03.6]} 58... Kxg5 {[%clk 0:00:13.8]} 59. Ke2 {[%clk 0:00:04.3]} 59... Be4
{[%clk 0:00:14.1]} 60. Kd2 {[%clk 0:00:05.1]} 60... Kf6 {[%clk 0:00:15]} 61. Kc3
{[%clk 0:00:05.4]} 61... Kxf7 {[%clk 0:00:15.9]} 62. Kd4 {[%clk 0:00:05.6]}
62... Ke6 {[%clk 0:00:16.4]} 63. Kc3 {[%clk 0:00:06.1]} 63... Bc5 {[%clk
0:00:17.3]} 64. Kd2 {[%clk 0:00:06.2]} 64... Ke5 {[%clk 0:00:18.1]} 65. Ke2
{[%clk 0:00:06.6]} 65... Kf5 {[%clk 0:00:18.5]} 66. Kf2 {[%clk 0:00:07.3]} 66...
Kg4 {[%clk 0:00:19.4]} 67. Ke2 {[%clk 0:00:08.1]} 67... Kg3 {[%clk 0:00:19.8]}
68. Kd2 {[%clk 0:00:08.9]} 68... Kf3 {[%clk 0:00:20.7]} 69. Kc3 {[%clk
0:00:09.7]} 69... Kxe3 {[%clk 0:00:21.2]} 70. Kb2 {[%clk 0:00:09.9]} 70... Kd2
{[%clk 0:00:21.4]} 71. Ka1 {[%clk 0:00:09.5]} 71... Bc2 {[%clk 0:00:21.5]} 72.
Ka2 {[%clk 0:00:10.4]} 72... d4 {[%clk 0:00:21.9]} 73. Ka1 {[%clk 0:00:11.3]}
73... Kc1 {[%clk 0:00:20.1]} 74. Ka2 {[%clk 0:00:12.2]} 74... d3 {[%clk
0:00:20.5]} 75. Ka1 {[%clk 0:00:12.5]} 75... d2 {[%clk 0:00:21]} 76. Ka2 {[%clk
0:00:13.4]} 76... d1=Q {[%clk 0:00:21.3]} 77. Ka1 {[%clk 0:00:14.3]} 77... Qd4+
{[%clk 0:00:20.5]} 78. Ka2 {[%clk 0:00:15.2]} 78... Qa4# {[%clk 0:00:21.2]} 0-1